[Event "Schack-SM 2023: Veteran-SM 65+"]
[Site "Helsingborg Arena, Mellersta Stenbocksgatan 14, Helsingborg, Sweden"]
[Date "2023.07.07"]
[Round "7.6"]
[White "Gromark, Per-Olof"]
[Black "Olsson, Thomas"]
[Result "1-0"]
[TimeControl "90 minutes for 40 moves + 30 minutes for the rest of games + 30 seconds per move from move one."]
[WhiteElo "1875"]
[BlackElo "1874"]

1. c4 {[%clk 01:30:57]} {[%emt 00:00:02]} d6 {[%clk 01:29:37]} {[%emt
00:01:24]} 2. Nc3 {[%clk 01:31:19]} {[%emt 00:00:08]} g6 {[%clk 01:27:34]}
{[%emt 00:02:33]} 3. g3 {[%clk 01:31:39]} {[%emt 00:00:09]} Bg7 {[%clk
01:27:34]} {[%emt 00:00:30]} 4. Bg2 {[%clk 01:32:04]} {[%emt 00:00:05]} c5
{[%clk 01:26:32]} {[%emt 00:01:32]} 5. e4 {[%clk 01:31:49]} {[%emt 00:00:45]}
Nc6 {[%clk 01:26:31]} {[%emt 00:00:31]} 6. Nge2 {[%clk 01:32:10]} {[%emt
00:00:09]} e6 {[%clk 01:24:34]} {[%emt 00:02:27]} 7. d3 {[%clk 01:31:48]}
{[%emt 00:00:52]} Nge7 {[%clk 01:24:48]} {[%emt 00:00:17]} 8. O-O {[%clk
01:31:10]} {[%emt 00:01:07]} O-O {[%emt 00:00:31]} 9. Be3 {[%emt 00:03:50]} Nd4
{[%clk 01:18:42]} {[%emt 00:02:16]} 10. Qd2 {[%clk 01:30:21]} {[%emt 00:01:18]}
Nec6 {[%clk 01:17:42]} {[%emt 00:01:30]} 11. Bh6 {[%clk 01:27:13]} {[%emt
00:03:39]} Bd7 {[%clk 01:12:21]} {[%emt 00:05:51]} 12. Bxg7 {[%clk 01:21:10]}
{[%emt 00:06:32]} Kxg7 {[%clk 01:12:42]} {[%emt 00:00:09]} 13. Rab1 {[%clk
01:20:48]} {[%emt 00:00:52]} Nxe2+ {[%clk 01:05:22]} {[%emt 00:07:50]} 14. Nxe2
{[%clk 01:20:57]} {[%emt 00:00:21]} e5 {[%clk 01:01:40]} {[%emt 00:04:13]} 15.
h3 {[%clk 01:10:03]} {[%emt 00:11:23]} Rb8 {[%clk 00:54:59]} {[%emt 00:07:11]}
16. f4 {[%clk 01:03:15]} {[%emt 00:07:18]} f6 {[%clk 00:50:46]} {[%emt
00:04:43]} 17. a3 {[%clk 00:58:13]} {[%emt 00:05:33]} a5 {[%clk 00:31:30]}
{[%emt 00:19:45]} 18. Nc3 {[%clk 00:52:49]} {[%emt 00:05:54]} Nd4 {[%clk
00:28:36]} {[%emt 00:03:23]} 19. b4 {[%clk 00:52:17]} {[%emt 00:01:04]} axb4
{[%clk 00:26:25]} {[%emt 00:02:41]} 20. axb4 {[%clk 00:51:46]} {[%emt
00:01:01]} b6 {[%clk 00:26:36]} {[%emt 00:00:18]} 21. Kh2 {[%clk 00:45:37]}
{[%emt 00:06:39]} Nc6 {[%clk 00:23:13]} {[%emt 00:03:54]} 22. b5 {[%clk
00:33:31]} {[%emt 00:12:35]} Nd4 {[%clk 00:23:25]} {[%emt 00:00:18]} 23. Qb2
{[%clk 00:31:38]} {[%emt 00:02:23]} Be6 {[%clk 00:13:33]} {[%emt 00:10:22]} 24.
Ra1 {[%clk 00:30:32]} {[%emt 00:01:36]} Rf7 {[%clk 00:13:21]} {[%emt 00:00:42]}
25. Ra6 {[%clk 00:29:10]} {[%emt 00:01:51]} Bc8 {[%clk 00:13:14]} {[%emt
00:00:38]} 26. Ra3 {[%clk 00:29:05]} {[%emt 00:00:36]} Be6 {[%clk 00:08:26]}
{[%emt 00:05:17]} 27. Rfa1 {[%clk 00:28:18]} {[%emt 00:01:16]} Rfb7 {[%clk
00:08:12]} {[%emt 00:00:45]} 28. h4 {[%clk 00:24:05]} {[%emt 00:04:43]} Bf7
{[%clk 00:06:07]} {[%emt 00:02:35]} 29. Qf2 {[%clk 00:21:40]} {[%emt 00:02:55]}
Bg8 {[%clk 00:06:16]} {[%emt 00:00:20]} 30. Bh3 {[%clk 00:20:30]} {[%emt
00:01:41]} Qe7 {[%clk 00:06:23]} {[%emt 00:00:23]} 31. f5 {[%clk 00:14:43]}
{[%emt 00:06:16]} Qc7 {[%clk 00:04:03]} {[%emt 00:02:51]} 32. g4 {[%clk
00:14:11]} {[%emt 00:01:02]} Rf8 {[%clk 00:02:58]} {[%emt 00:01:34]} 33. Rf1
{[%clk 00:10:27]} {[%emt 00:04:15]} Qe7 {[%clk 00:02:29]} {[%emt 00:00:58]} 34.
Qa2 {[%clk 00:09:30]} {[%emt 00:01:28]} Rfb8 {[%clk 00:02:25]} {[%emt
00:00:34]} 35. Kg2 {[%clk 00:08:35]} {[%emt 00:01:25]} Qc7 {[%clk 00:02:41]}
{[%emt 00:00:13]} 36. Qf2 {[%clk 00:07:54]} {[%emt 00:01:12]} Rf8 {[%clk
00:02:14]} {[%emt 00:00:57]} 37. Kh2 {[%clk 00:07:48]} {[%emt 00:00:36]} Qe7
{[%clk 00:02:00]} {[%emt 00:00:44]} 38. Qg2 {[%clk 00:07:29]} {[%emt 00:00:49]}
Rbb8 {[%clk 00:01:35]} {[%emt 00:00:56]} 39. Ra2 {[%clk 00:06:59]} {[%emt
00:00:59]} Rb7 {[%clk 00:01:05]} {[%emt 00:01:00]} 40. Raf2 {[%clk 00:06:01]}
{[%emt 00:01:28]} Rbb8 {[%clk 00:01:14]} {[%emt 00:00:22]} 41. g5 {[%clk
00:27:29]} {[%emt 00:09:01]} 1-0

[Event "Schack-SM 2023: Veteran-SM 50+"]
[Site "Helsingborg Arena, Mellersta Stenbocksgatan 14, Helsingborg, Sweden"]
[Date "2023.07.07"]
[Round "7.6"]
[White "Gamback, Bjorn"]
[Black "Svensson, Hakan"]
[Result "1/2-1/2"]
[TimeControl "90 minutes for 40 moves + 30 minutes for the rest of games + 30 seconds per move from move one."]
[WhiteTitle "CM"]
[WhiteElo "2048"]
[BlackElo "2054"]

1. Nf3 {[%clk 01:25:41]} {[%emt 00:05:18]} d5 {[%clk 01:30:21]} {[%emt
00:00:39]} 2. d4 {[%clk 01:25:35]} {[%emt 00:00:38]} Nf6 {[%clk 01:30:36]}
{[%emt 00:00:14]} 3. c4 {[%clk 01:25:59]} {[%emt 00:00:06]} e6 {[%clk
01:30:34]} {[%emt 00:00:31]} 4. Bg5 {[%clk 01:26:10]} {[%emt 00:00:19]} dxc4
{[%clk 01:24:47]} {[%emt 00:06:17]} 5. e3 {[%clk 01:25:33]} {[%emt 00:01:07]}
b5 {[%clk 01:22:58]} {[%emt 00:02:20]} 6. a4 {[%clk 01:25:18]} {[%emt
00:00:46]} c6 {[%clk 01:22:52]} {[%emt 00:00:34]} 7. Ne5 {[%clk 01:24:49]}
{[%emt 00:00:59]} Bb4+ {[%clk 01:21:46]} {[%emt 00:01:36]} 8. Nd2 {[%clk
01:24:27]} {[%emt 00:00:53]} Qd5 {[%clk 01:16:51]} {[%emt 00:05:25]} 9. Bxf6
{[%clk 01:20:14]} {[%emt 00:04:43]} gxf6 {[%clk 01:17:09]} {[%emt 00:00:11]} 10.
Nef3 {[%clk 01:20:37]} {[%emt 00:00:07]} e5 {[%clk 01:12:01]} {[%emt 00:05:38]}
11. Be2 {[%clk 01:18:12]} {[%emt 00:02:55]} Rg8 {[%clk 01:06:00]} {[%emt
00:06:29]} 12. Kf1 {[%clk 01:11:58]} {[%emt 00:06:47]} e4 {[%clk 01:05:08]}
{[%emt 00:01:20]} 13. Ng1 {[%clk 01:03:35]} {[%emt 00:08:54]} Na6 {[%clk
00:57:13]} {[%emt 00:08:26]} 14. axb5 {[%clk 01:02:04]} {[%emt 00:02:01]} cxb5
{[%clk 00:57:27]} {[%emt 00:00:15]} 15. Nxe4 {[%clk 01:01:30]} {[%emt
00:01:04]} Qe6 {[%clk 00:52:47]} {[%emt 00:05:10]} 16. Bf3 {[%clk 00:59:45]}
{[%emt 00:02:16]} Rb8 {[%clk 00:52:46]} {[%emt 00:00:31]} 17. Ne2 {[%clk
00:57:08]} {[%emt 00:03:06]} 1/2-1/2

[Event "Schack-SM 2023: Mastarklassen"]
[Site "Helsingborg Arena, Mellersta Stenbocksgatan 14, Helsingborg, Sweden"]
[Date "2023.07.07"]
[Round "7.6"]
[White "Soppela, Toni"]
[Black "Mashhadi, Peyman"]
[Result "0-1"]
[TimeControl "90 minutes for 40 moves + 30 minutes for the rest of games + 30 seconds per move from move one."]
[WhiteElo "2032"]
[BlackElo "2117"]

1. d4 {[%clk 01:30:16]} {[%emt 00:00:42]} g6 {[%clk 01:30:43]} {[%emt
00:00:18]} 2. c4 {[%clk 01:30:21]} {[%emt 00:00:25]} Bg7 {[%clk 01:30:59]}
{[%emt 00:00:13]} 3. Nc3 {[%clk 01:30:37]} {[%emt 00:00:16]} Nf6 {[%clk
01:31:10]} {[%emt 00:00:17]} 4. e4 {[%clk 01:30:44]} {[%emt 00:00:23]} O-O
{[%clk 01:31:23]} {[%emt 00:00:17]} 5. Nf3 {[%clk 01:30:08]} {[%emt 00:01:06]}
d6 {[%clk 01:31:38]} {[%emt 00:00:15]} 6. Be2 {[%clk 01:30:11]} {[%emt
00:00:28]} Na6 {[%clk 01:31:24]} {[%emt 00:00:44]} 7. O-O {[%clk 01:29:10]}
{[%emt 00:01:30]} e5 {[%clk 01:31:13]} {[%emt 00:00:41]} 8. Be3 {[%clk
01:25:31]} {[%emt 00:04:09]} Qe8 {[%clk 01:30:26]} {[%emt 00:01:18]} 9. dxe5
{[%clk 01:22:52]} {[%emt 00:03:09]} dxe5 {[%clk 01:28:35]} {[%emt 00:02:21]} 10.
h3 {[%clk 01:22:02]} {[%emt 00:01:19]} b6 {[%clk 01:18:59]} {[%emt 00:10:07]}
11. Qb1 {[%clk 01:11:57]} {[%emt 00:10:33]} Nh5 {[%clk 01:13:19]} {[%emt
00:06:11]} 12. Re1 {[%clk 01:09:36]} {[%emt 00:02:50]} Bb7 {[%clk 01:06:57]}
{[%emt 00:06:54]} 13. b4 {[%clk 01:04:47]} {[%emt 00:05:18]} Nf4 {[%clk
01:03:05]} {[%emt 00:04:23]} 14. Bf1 {[%clk 01:04:12]} {[%emt 00:01:05]} Ne6
{[%clk 00:59:53]} {[%emt 00:03:42]} 15. a3 {[%clk 00:59:22]} {[%emt 00:05:20]}
Rd8 {[%clk 00:49:43]} {[%emt 00:10:40]} 16. Nd2 {[%clk 00:52:26]} {[%emt
00:07:24]} f5 {[%clk 00:48:33]} {[%emt 00:01:42]} 17. Nb3 {[%clk 00:40:21]}
{[%emt 00:12:34]} Qf7 {[%clk 00:43:53]} {[%emt 00:05:10]} 18. f3 {[%clk
00:36:11]} {[%emt 00:04:41]} Nb8 {[%clk 00:38:35]} {[%emt 00:05:47]} 19. Rd1
{[%clk 00:33:26]} {[%emt 00:03:16]} Nc6 {[%clk 00:35:13]} {[%emt 00:03:53]} 20.
Nd5 {[%clk 00:27:13]} {[%emt 00:06:43]} Ncd4 {[%clk 00:32:56]} {[%emt
00:02:46]} 21. b5 {[%clk 00:26:56]} {[%emt 00:00:46]} h5 {[%clk 00:25:22]}
{[%emt 00:08:05]} 22. Ra2 {[%clk 00:20:36]} {[%emt 00:06:50]} f4 {[%clk
00:20:29]} {[%emt 00:05:24]} 23. Bc1 {[%clk 00:15:49]} {[%emt 00:05:16]} g5
{[%clk 00:19:39]} {[%emt 00:01:19]} 24. Rf2 {[%clk 00:14:53]} {[%emt 00:01:26]}
Kh8 {[%clk 00:17:38]} {[%emt 00:02:32]} 25. Rd3 {[%clk 00:12:09]} {[%emt
00:03:13]} Rg8 {[%clk 00:14:25]} {[%emt 00:03:44]} 26. Bb2 {[%clk 00:12:11]}
{[%emt 00:00:28]} c6 {[%clk 00:11:32]} {[%emt 00:03:24]} 27. bxc6 {[%clk
00:10:50]} {[%emt 00:01:51]} Bxc6 {[%clk 00:11:50]} {[%emt 00:00:11]} 28. Qa1
{[%clk 00:09:00]} {[%emt 00:02:20]} Ba4 {[%clk 00:10:55]} {[%emt 00:01:26]} 29.
Rxd4 {[%clk 00:08:21]} {[%emt 00:01:08]} exd4 {[%clk 00:10:10]} {[%emt
00:01:15]} 30. Nxd4 {[%clk 00:08:34]} {[%emt 00:00:17]} Nxd4 {[%clk 00:09:55]}
{[%emt 00:00:45]} 31. Bxd4 {[%clk 00:08:49]} {[%emt 00:00:15]} Rge8 {[%clk
00:06:16]} {[%emt 00:04:08]} 32. Rd2 {[%clk 00:04:52]} {[%emt 00:04:28]} Bxd4+
{[%clk 00:05:21]} {[%emt 00:01:25]} 33. Qxd4+ {[%clk 00:04:16]} {[%emt
00:01:06]} Qg7 {[%clk 00:05:41]} {[%emt 00:00:10]} 34. Qf2 {[%clk 00:04:14]}
{[%emt 00:00:32]} h4 {[%clk 00:04:25]} {[%emt 00:01:47]} 35. Rd4 {[%clk
00:03:33]} {[%emt 00:01:10]} Bc6 {[%clk 00:03:32]} {[%emt 00:01:24]} 36. Qd2
{[%clk 00:03:42]} {[%emt 00:00:20]} Qe5 {[%clk 00:03:15]} {[%emt 00:00:47]} 37.
Kh2 {[%clk 00:03:09]} {[%emt 00:01:03]} Rd7 {[%clk 00:02:57]} {[%emt 00:00:49]}
38. Kg1 {[%clk 00:02:19]} {[%emt 00:01:20]} Rc8 {[%clk 00:02:13]} {[%emt
00:01:13]} 39. Kh2 {[%clk 00:02:30]} {[%emt 00:00:19]} Rcd8 {[%clk 00:01:59]}
{[%emt 00:00:44]} 40. Kg1 {[%clk 00:02:41]} {[%emt 00:00:19]} Ba4 {[%clk
00:01:11]} {[%emt 00:01:18]} 41. Kh2 {[%clk 00:02:36]} {[%emt 00:00:35]} Rc8
{[%clk 00:26:13]} {[%emt 00:05:28]} 42. Kg1 {[%clk 00:30:39]} {[%emt 00:02:27]}
Rd6 {[%clk 00:21:36]} {[%emt 00:05:07]} 43. Kh2 {[%clk 00:30:44]} {[%emt
00:00:24]} Rc5 {[%clk 00:19:11]} {[%emt 00:02:55]} 44. Be2 {[%clk 00:30:24]}
{[%emt 00:00:51]} Ra5 {[%clk 00:16:29]} {[%emt 00:03:12]} 45. Qb4 {[%clk
00:27:14]} {[%emt 00:03:39]} Be8 {[%clk 00:15:08]} {[%emt 00:01:51]} 46. Rd1
{[%clk 00:26:23]} {[%emt 00:01:21]} Rc5 {[%clk 00:14:30]} {[%emt 00:01:09]} 47.
Qb3 {[%clk 00:23:03]} {[%emt 00:03:49]} Qg7 {[%clk 00:10:38]} {[%emt 00:04:23]}
48. Bf1 {[%clk 00:22:05]} {[%emt 00:01:28]} Rd8 {[%clk 00:08:03]} {[%emt
00:03:05]} 49. Be2 {[%clk 00:22:09]} {[%emt 00:00:26]} Bf7 {[%clk 00:07:38]}
{[%emt 00:00:55]} 50. Rd3 {[%clk 00:14:47]} {[%emt 00:07:51]} Rdc8 {[%clk
00:07:10]} {[%emt 00:00:59]} 51. Rd1 {[%clk 00:14:13]} {[%emt 00:01:04]} b5
{[%clk 00:06:03]} {[%emt 00:01:37]} 52. cxb5 {[%clk 00:14:06]} {[%emt
00:00:37]} Rc2 {[%clk 00:06:13]} {[%emt 00:00:20]} 53. Bd3 {[%clk 00:13:47]}
{[%emt 00:00:49]} Rb2 {[%clk 00:05:36]} {[%emt 00:01:07]} 54. Qa4 {[%clk
00:13:31]} {[%emt 00:00:46]} g4 {[%clk 00:05:42]} {[%emt 00:00:24]} 55. hxg4
{[%clk 00:09:54]} {[%emt 00:04:08]} h3 {[%clk 00:05:48]} {[%emt 00:00:24]} 56.
Nxf4 {[%clk 00:09:09]} {[%emt 00:01:15]} Qe5 {[%clk 00:04:14]} {[%emt
00:02:04]} 57. Kg3 {[%clk 00:08:07]} {[%emt 00:01:31]} Rf8 {[%clk 00:02:24]}
{[%emt 00:02:20]} 58. Qa6 {[%clk 00:06:48]} {[%emt 00:01:49]} Kg7 {[%clk
00:02:20]} {[%emt 00:00:34]} 59. Rh1 {[%clk 00:05:03]} {[%emt 00:02:15]} Be8
{[%clk 00:02:11]} {[%emt 00:00:39]} 60. Qxa7+ {[%clk 00:04:32]} {[%emt
00:01:02]} Rf7 {[%clk 00:02:14]} {[%emt 00:00:26]} 61. Qe3 {[%clk 00:04:29]}
{[%emt 00:00:33]} Rxf4 {[%clk 00:01:56]} {[%emt 00:00:48]} 62. Kxh3 {[%clk
00:03:19]} {[%emt 00:01:41]} Rf6 {[%clk 00:01:44]} {[%emt 00:00:41]} 63. g5
{[%clk 00:03:19]} {[%emt 00:00:30]} Bd7+ {[%clk 00:01:55]} {[%emt 00:00:19]} 64.
g4 {[%clk 00:03:06]} {[%emt 00:00:43]} Rf8 {[%clk 00:01:56]} {[%emt 00:00:29]}
65. Be2 {[%clk 00:02:37]} {[%emt 00:01:00]} Rh8+ {[%clk 00:01:10]} {[%emt
00:01:15]} 66. Kg2 {[%clk 00:03:00]} {[%emt 00:00:06]} Rxh1 {[%clk 00:01:29]}
{[%emt 00:00:12]} 67. Kxh1 {[%clk 00:03:28]} {[%emt 00:00:02]} Rc2 {[%clk
00:01:14]} {[%emt 00:00:45]} 68. Qb6 {[%clk 00:01:07]} {[%emt 00:02:51]} Qa1+
{[%clk 00:01:26]} {[%emt 00:00:18]} 69. Kg2 {[%clk 00:01:22]} {[%emt 00:00:16]}
Rxe2+ {[%clk 00:01:49]} {[%emt 00:00:06]} 70. Kg3 {[%clk 00:01:36]} {[%emt
00:00:17]} Qe5+ {[%clk 00:02:08]} {[%emt 00:00:10]} 71. f4 {[%clk 00:01:42]}
{[%emt 00:00:24]} Qc3+ {[%clk 00:02:30]} {[%emt 00:00:07]} 0-1

[Event "Schack-SM 2023: Mastarklassen"]
[Site "Helsingborg Arena, Mellersta Stenbocksgatan 14, Helsingborg, Sweden"]
[Date "2023.07.07"]
[Round "7.7"]
[White "Nylen, Anders"]
[Black "Muntean, Victor"]
[Result "1/2-1/2"]
[TimeControl "90 minutes for 40 moves + 30 minutes for the rest of games + 30 seconds per move from move one."]
[WhiteElo "2094"]
[BlackElo "2097"]

1. d4 {[%clk 01:30:58]} {[%emt 00:00:02]} d5 {[%clk 01:30:56]} {[%emt
00:00:05]} 2. c4 {[%clk 01:31:18]} {[%emt 00:00:10]} dxc4 {[%clk 01:31:22]}
{[%emt 00:00:04]} 3. e3 {[%clk 01:30:20]} {[%emt 00:01:27]} c5 {[%clk
01:30:39]} {[%emt 00:01:14]} 4. Bxc4 {[%clk 01:29:03]} {[%emt 00:01:47]} cxd4
{[%clk 01:29:09]} {[%emt 00:01:59]} 5. exd4 {[%clk 01:29:20]} {[%emt 00:00:14]}
e6 {[%clk 01:28:07]} {[%emt 00:01:32]} 6. Nc3 {[%clk 01:28:46]} {[%emt
00:01:03]} Nf6 {[%clk 01:26:58]} {[%emt 00:01:40]} 7. Bg5 {[%clk 01:26:48]}
{[%emt 00:02:28]} Be7 {[%clk 01:24:35]} {[%emt 00:02:53]} 8. Nf3 {[%clk
01:25:49]} {[%emt 00:01:28]} Nc6 {[%clk 01:23:08]} {[%emt 00:01:58]} 9. O-O
{[%clk 01:23:05]} {[%emt 00:03:14]} O-O {[%clk 01:22:42]} {[%emt 00:00:57]} 10.
Qd2 {[%clk 01:21:43]} {[%emt 00:01:49]} a6 {[%clk 01:19:09]} {[%emt 00:04:06]}
11. a3 {[%clk 01:14:15]} {[%emt 00:07:57]} h6 {[%clk 01:15:33]} {[%emt
00:04:05]} 12. Bh4 {[%clk 01:10:43]} {[%emt 00:04:01]} Qb6 {[%clk 01:14:52]}
{[%emt 00:01:13]} 13. b4 {[%clk 01:02:34]} {[%emt 00:08:39]} Rd8 {[%clk
01:11:53]} {[%emt 00:03:28]} 14. Rad1 {[%clk 01:00:05]} {[%emt 00:02:59]} Qa7
{[%clk 01:04:31]} {[%emt 00:07:53]} 15. Rfe1 {[%clk 00:50:32]} {[%emt
00:10:03]} b5 {[%clk 01:01:12]} {[%emt 00:03:49]} 16. Ba2 {[%clk 00:49:58]}
{[%emt 00:01:04]} Rb8 {[%clk 00:57:48]} {[%emt 00:03:54]} 17. d5 {[%clk
00:37:47]} {[%emt 00:12:41]} Nxd5 {[%clk 00:53:34]} {[%emt 00:04:44]} 18. Nxd5
{[%clk 00:36:28]} {[%emt 00:01:48]} Bxh4 {[%clk 00:53:30]} {[%emt 00:00:35]} 19.
Nxh4 {[%clk 00:36:53]} {[%emt 00:00:05]} exd5 {[%clk 00:53:38]} {[%emt
00:00:22]} 20. Bxd5 {[%clk 00:35:50]} {[%emt 00:01:33]} Bg4 {[%clk 00:51:00]}
{[%emt 00:03:07]} 21. Rc1 {[%clk 00:31:16]} {[%emt 00:05:04]} Qd7 {[%clk
00:38:54]} {[%emt 00:12:37]} 22. Qa2 {[%clk 00:20:07]} {[%emt 00:11:39]} Qxd5
{[%clk 00:32:32]} {[%emt 00:06:53]} 23. Qxd5 {[%clk 00:20:27]} {[%emt
00:00:10]} Rxd5 {[%clk 00:32:59]} {[%emt 00:00:02]} 24. Rxc6 {[%clk 00:20:46]}
{[%emt 00:00:10]} Ra8 {[%clk 00:33:09]} {[%emt 00:00:21]} 25. h3 {[%clk
00:18:57]} {[%emt 00:02:18]} Be6 {[%clk 00:32:12]} {[%emt 00:01:28]} 26. Ng6
{[%clk 00:15:45]} {[%emt 00:03:42]} Rd3 {[%clk 00:28:14]} {[%emt 00:04:27]} 27.
Nf4 {[%clk 00:15:18]} {[%emt 00:00:57]} Rxa3 {[%clk 00:28:33]} {[%emt
00:00:12]} 28. Nxe6 {[%clk 00:15:39]} {[%emt 00:00:09]} fxe6 {[%clk 00:28:47]}
{[%emt 00:00:16]} 29. Rexe6 {[%clk 00:15:49]} {[%emt 00:00:20]} Ra7 {[%clk
00:28:41]} {[%emt 00:00:35]} 30. Rb6 {[%clk 00:12:51]} {[%emt 00:03:28]} Ra1+
{[%clk 00:29:04]} {[%emt 00:00:08]} 31. Kh2 {[%clk 00:13:12]} {[%emt 00:00:08]}
Ra2 {[%clk 00:29:24]} {[%emt 00:00:11]} 32. Kg3 {[%clk 00:12:47]} {[%emt
00:00:55]} Ra4 {[%clk 00:27:34]} {[%emt 00:02:20]} 33. Re4 {[%clk 00:11:44]}
{[%emt 00:01:32]} Rc7 {[%clk 00:26:45]} {[%emt 00:01:19]} 34. Rd4 {[%clk
00:08:06]} {[%emt 00:04:08]} Ra2 {[%clk 00:24:34]} {[%emt 00:02:41]} 35. Rdd6
{[%clk 00:05:08]} {[%emt 00:03:28]} Rc3+ {[%clk 00:21:59]} {[%emt 00:03:05]} 36.
Kh2 {[%clk 00:03:33]} {[%emt 00:02:05]} Rxf2 {[%clk 00:20:55]} {[%emt
00:01:35]} 37. Rxa6 {[%clk 00:03:53]} {[%emt 00:00:10]} Rc4 {[%clk 00:21:00]}
{[%emt 00:00:24]} 38. Rd7 {[%clk 00:01:25]} {[%emt 00:02:59]} Rf6 {[%clk
00:19:21]} {[%emt 00:02:08]} 39. Rxf6 {[%clk 00:00:41]} {[%emt 00:01:15]} gxf6
{[%clk 00:19:49]} {[%emt 00:00:02]} 40. Rb7 {[%clk 00:00:49]} {[%emt 00:00:22]}
Rxb4 {[%clk 00:20:10]} {[%emt 00:00:08]} 41. Kg3 {[%clk 00:00:51]} {[%emt
00:00:29]} Rb2 {[%clk 00:19:30]} {[%emt 00:01:10]} 42. Kf4 {[%clk 00:28:59]}
{[%emt 00:02:22]} Rxg2 {[%clk 00:48:07]} {[%emt 00:01:52]} 43. Rxb5 {[%clk
00:29:20]} {[%emt 00:00:10]} Kf7 {[%clk 00:48:18]} {[%emt 00:00:19]} 44. Kf3
{[%clk 00:28:09]} {[%emt 00:01:11]} Rg5 {[%clk 00:48:12]} {[%emt 00:00:35]} 45.
Rb6 {[%clk 00:28:48]} {[%emt 00:00:22]} Kg6 {[%clk 00:48:19]} {[%emt 00:00:23]}
46. Ra6 {[%clk 00:28:20]} {[%emt 00:00:58]} Rb5 {[%clk 00:48:12]} {[%emt
00:00:37]} 47. Kg3 {[%clk 00:28:27]} {[%emt 00:00:23]} Rb4 {[%clk 00:48:15]}
{[%emt 00:00:27]} 48. Ra8 {[%clk 00:27:57]} {[%emt 00:00:59]} h5 {[%clk
00:41:33]} {[%emt 00:07:12]} 49. Rg8+ {[%clk 00:27:46]} {[%emt 00:00:41]} Kh7
{[%clk 00:41:48]} {[%emt 00:00:14]} 50. Ra8 {[%clk 00:28:02]} {[%emt 00:00:15]}
h4+ {[%clk 00:41:52]} {[%emt 00:00:26]} 51. Kf3 {[%clk 00:28:10]} {[%emt
00:00:22]} Kg6 {[%clk 00:42:16]} {[%emt 00:00:06]} 52. Ra5 {[%clk 00:27:22]}
{[%emt 00:01:17]} Rc4 {[%clk 00:38:07]} {[%emt 00:04:40]} 53. Rb5 {[%clk
00:27:16]} {[%emt 00:00:37]} Ra4 {[%clk 00:38:30]} {[%emt 00:00:07]} 54. Rc5
{[%clk 00:27:38]} {[%emt 00:00:09]} Ra3+ {[%clk 00:31:36]} {[%emt 00:07:23]}
1/2-1/2